Cogmind - Beta 13 @@@ ROGUE MODE // 2024.06.04 @ 20:09:12 Player: CanadianCogs Result: Destroyed by G-47 Trooper with Particle Gun Performance ------------- Evolutions (2) 1000 Regions Visited (4) 800 Robots Destroyed (41) 205 Value Destroyed (1259) 1259 Prototype IDs (1) 20 Alien Tech Used (0) 0 Bonus (63) 63 TOTAL SCORE: 3347 Bonus ------- High Alert Combat Kills 63 Cogmind --------- Core Integrity 0/550 Matter 4/300 Energy 20/100 System Corruption 11% Temperature Cool (9) Movement Core (400) Ox7 Location -8/Materials Parts ------- > --- POWER (1) -------- (None) > --- PROPULSION (4) --- (None) > --- UTILITY (4) ------ Large Storage Unit > --- WEAPON (2) ------- Heavy Laser > --- INVENTORY (15) --- Improved Cooling System Improved Cooling System Advanced Weight Redist. System Targeting Computer Targeting Computer Advanced ECM Suite Advanced ECM Suite Medium Armor Plating Medium Armor Plating Medium Armor Plating Peak State ------------ > --- POWER ------------ Deuterium Engine > --- PROPULSION ------- Improved Treads Improved Treads Improved Treads Improved Treads > --- UTILITY ---------- Large Storage Unit Targeting Computer Targeting Computer Medium Armor Plating > --- WEAPON ----------- Rocket Launcher Rocket Launcher > --- INVENTORY -------- Carbon-fiber Leg Improved Cooling System Advanced Weight Redist. System Seismic Detector Targeting Computer Targeting Computer Advanced ECM Suite Medium Armor Plating Medium Armor Plating Medium Armor Plating Hardened Light Armor Plating Heavy Laser Heavy Laser Heavy Laser Heavy Laser [Rating: 24] Favorites ----------- Power Deuterium Engine Engine Deuterium Engine Propulsion Improved Hover Unit Treads Improved Treads Leg Improved Aluminum Leg Hover Unit Improved Hover Unit Utility Large Storage Unit Device Seismic Detector Storage Large Storage Unit Processor Targeting Computer Protection Medium Armor Plating Weapon Heavy Hammer Energy Gun Heavy Laser Ballistic Gun Light Assault Rifle Launcher Rocket Launcher Impact Weapon Heavy Hammer Build | -11 -10 -9 -9 -8 ------- Run | Yrd Mat Mat Sto Mat Slots Evolved 4 | . . 2 . 2 Power . | . . . . . Propulsion 2 | . . 2 . . Utility 2 | . . . . 2 Weapon . | . . . . . Parts Attached 39 | 7 5 6 9 12 Power 5 | 1 . 2 2 . Engine 5 | 1 . 2 2 . Core . | . . . . . Reactor . | . . . . . Propulsion 13 | 2 2 2 7 . Treads 6 | 2 . . 4 . Leg 3 | . . . 3 . Wheel . | . . . . . Hover 4 | . 2 2 . . Flight . | . . . . . Utility 9 | 2 3 . . 4 Device 3 | 1 2 . . . Storage 2 | 1 1 . . . Processor 2 | . . . . 2 Hackware . | . . . . . Protection 2 | . . . . 2 Artifact . | . . . . . Weapon 12 | 2 . 2 . 8 Energy Gun 5 | . . . . 5 Energy Cannon . | . . . . . Ballistic Gun 2 | 2 . . . . Ballistic Cannon . | . . . . . Launcher 3 | . . . . 3 Special Weapon . | . . . . . Impact Weapon 2 | . . 2 . . Slashing Weapon . | . . . . . Piercing Weapon . | . . . . . Special Melee Weapon . | . . . . . Unidentified Prototypes 1 | . . . 1 . Parts Lost 20 | . . . 5 15 Power 1 | . . . . 1 Propulsion 8 | . . . 4 4 Utility 5 | . . . 1 4 Weapon 6 | . . . . 6 Highest Loss Streak 10 | . . . 2 10 To Critical Strikes 1 | . . . . 1 Average Slot Usage (%) 88 | . 100 100 72 83 Engine 10 | . 14 11 11 7 Treads 7 | . 12 . 1 29 Leg 1 | . . . 4 . Hover 23 | . 15 44 15 . Device 8 | . 14 11 6 . Storage 10 | . 14 11 11 9 Processor 2 | . . . . 14 Protection 1 | . . . . 7 Ballistic Gun 9 | . 28 15 . . Launcher 2 | . . . . 12 Impact Weapon 9 | . . 6 22 . Naked Turns . | . . . . . Heaviest Build 44 | 13 28 36 36 44 Greatest Support 92 | 40 40 28 92 92 Greatest Overweight (x) 5 | . 1 1 5 1 Average Overweight (x) . | . . . 1 . Largest Inventory Capacity 15 | 8 15 15 15 15 Average Capacity 14 | 7 9 15 15 15 Most Carried 15 | 5 10 15 15 15 Average Carried 12 | 1 5 14 14 12 Final Capacity 15 | 8 15 15 15 15 Final Carried 15 | 2 10 15 14 10 Class Distribution -------------------- 100% | Mutant Dominant Class ---------------- Mutant | -10/Materials Mutant | -9/Materials Mutant | -9/Storage Mutant | -8/Materials Resources | -11 -10 -9 -9 -8 ----------- Run | Yrd Mat Mat Sto Mat Matter Collected 506 | 186 . 202 47 71 Remotely . | . . . . . Salvage Created 1300 | 74 . 19 695 512 Parts 51 | 3 . 3 22 23 Haulers Intercepted 4 | . . . 3 1 Recyclers Shooed 1 | 1 . . . . Parts Field Recycled . | . . . . . Retrieved Matter . | . . . . . Parts Self-Destructed . | . . . . . Prevented . | . . . . . Kills | -11 -10 -9 -9 -8 ------- Run | Yrd Mat Mat Sto Mat Combat Hostiles Destroyed 28 | . . . 12 16 Melee 4 | . . . 4 . Guns 1 | . . . . 1 AOE 15 | . . . . 15 Classes Destroyed 11 | 2 . 1 3 5 Worker 1 | . . . . 1 Builder 1 | . . . . 1 Tunneler 2 | 1 . . . 1 Hauler 4 | . . . 3 1 Recycler 1 | 1 . . . . Operator 2 | . . 1 1 . Watcher 2 | . . . . 2 Swarmer 4 | . . . . 4 Grunt 15 | . . . 8 7 Brawler 1 | . . . . 1 Sentry 8 | . . . 4 4 Best Kill Streak 7 | 2 . 1 4 7 Combat Bots Only 5 | . . . 4 5 Max Kills in Single Turn 4 | 1 . 1 1 4 Gunslinging . | . . . . . Exploded 4 | . . . . 4 Melee 1 | . . . 1 . Uniques/NPCs Destroyed . | . . . . . Combat | -11 -10 -9 -9 -8 -------- Run | Yrd Mat Mat Sto Mat Hostile Shots Fired 307 | . . . 99 208 Missed 94 | . . . 29 65 Damage Taken 3023 | . . . 875 2148 Core 779 | . . . 229 550 Absorbed by Shields . | . . . . . Regen/Repaired (Parts) 78 | . . . 78 . Core Remaining (%) 80 | 100 100 . 42 . Volleys Fired 47 | 14 3 3 . 27 Largest 2 | 2 2 2 . 2 Hottest 138 | 40 40 40 . 138 Shots Fired 81 | 28 6 6 . 41 Gun 54 | 28 6 6 . 14 Cannon . | . . . . . Launcher 27 | . . . . 27 Special . | . . . . . Kinetic 40 | 28 6 6 . . Thermal 14 | . . . . 14 Explosive 24 | . . . . 24 Electromagnetic 3 | . . . . 3 Robot Hit Streak 6 | 4 5 6 . 5 Robot Miss Streak 3 | 2 2 1 . 3 Penetration Max . | . . . . . Secondary Targets . | . . . . . Shots Hit Robots 89 | 16 4 4 43 22 Core Hits 54 | 4 1 2 5 42 Critical Kills 1 | . . . 1 . Critical Parts Destroyed 6 | . . . 6 . Critical Strikes 8 | . . . 7 1 Burn 1 | . . . . 1 Smash 7 | . . . 7 . Melee Attacks 78 | . . 1 77 . Impact 78 | . . 1 77 . Slashing . | . . . . . Piercing . | . . . . . Sneak Attacks 6 | . . . 6 . Combat Hostiles . | . . . . . Follow-up Attacks 10 | . . . 10 . Damage Inflicted 3991 | 125 32 33 1799 2002 Guns 399 | 125 32 33 . 209 Cannons . | . . . . . Explosions 1789 | . . . . 1789 Melee 1799 | . . . 1799 . Ramming 4 | . . . . 4 Kinetic 190 | 125 32 33 . . Thermal 351 | . . . . 351 Explosive 1459 | . . . . 1459 Electromagnetic 188 | . . . . 188 Impact 1799 | . . . 1799 . Slashing . | . . . . . Piercing . | . . . . . Highest Corruption 11 | . . . . 11 Average Corruption 9 | . . . . 9 Corruption Purged . | . . . . . Corruption Blocked . | . . . . . Effects 2 | . . . . 2 Message Errors 1 | . . . . 1 Matter Fused 1 | . . . . 1 Overload Shots . | . . . . . Overflow Damage 578 | . . . 525 53 Projectiles . | . . . . . Explosions 53 | . . . . 53 Melee 525 | . . . 525 . Knockbacks 4 | . . . 4 . Impact 4 | . . . 4 . Kinetic . | . . . . . Secondary . | . . . . . Self-Inflicted Damage 15 | . . . . 15 Shots 1 | . . . . 1 Rammed 3 | . . . . 3 Targets Rammed 3 | . . . . 3 Kicked . | . . . . . Crushed . | . . . . . Highest Temperature 72 | . 8 6 12 72 Average Temperature 20 | . 4 2 12 22 Received Heat Transfer 1494 | . . . 423 1071 Siege Activations . | . . . . . Robots Corrupted . | . . . . . Combat Hostiles . | . . . . . Parts Fried 8 | . . . 8 . Impact Corruptions 20 | . . . 20 . Robots Melted . | . . . . . Combat Hostiles . | . . . . . Parts Melted . | . . . . . Heat Transferred 731 | . . . . 731 Parts Sabotaged . | . . . . . Parts Stolen . | . . . . . Parts Stripped . | . . . . . Power Chain Reactions 2 | . . . . 2 Alert | -11 -10 -9 -9 -8 ------- Run | Yrd Mat Mat Sto Mat Peak Influence 641 | 10 6 36 192 641 Initial 26 | . 6 1 5 26 Average 86 | 2 6 2 99 319 Maximum Alert Level 2 | . . . . 2 Low Security (%) 89 | 100 100 100 100 32 Level 1 2 | . . . . 16 Level 2 8 | . . . . 51 Level 3 . | . . . . . Level 4 . | . . . . . Level 5 . | . . . . . High Security . | . . . . . Max Security . | . . . . . Squads Dispatched 2 | . . . 2 . Investigation . | . . . . . Extermination . | . . . . . Reinforcement 2 | . . . 2 . Assault . | . . . . . Garrison . | . . . . . Intercept . | . . . . . Searches Triggered . | . . . . . Construction Impeded . | . . . . . Haulers Reinforced . | . . . . . Active Scanning Responses . | . . . . . Cargo Convoy Interrupts . | . . . . . Stealth | -11 -10 -9 -9 -8 --------- Run | Yrd Mat Mat Sto Mat Distress Signals 8 | . . . 6 2 Communications Jammed . | . . . . . Distress Signals . | . . . . . Times Spotted 57 | . 3 5 22 27 Peak Tracking Total 12 | . 3 1 6 12 Tactical Retreats 4 | . . . 3 1 Traps | -11 -10 -9 -9 -8 ------- Run | Yrd Mat Mat Sto Mat Traps Triggered . | . . . . . Indirectly . | . . . . . Trap Hack Attempts . | . . . . . Triggered . | . . . . . Disarmed . | . . . . . Reprogrammed . | . . . . . Reused . | . . . . . Traps Extracted . | . . . . . Installed . | . . . . . Triggered 1 | . . . 1 . Machines | -11 -10 -9 -9 -8 ---------- Run | Yrd Mat Mat Sto Mat Machines Disabled 8 | . . . 1 7 Max in Single Turn 1 | . . . 1 1 Machines Repaired . | . . . . . Machines Dismantled . | . . . . . Machines Sabotaged . | . . . . . Overloaded Fab Kills . | . . . . . Hacking | -11 -10 -9 -9 -8 --------- Run | Yrd Mat Mat Sto Mat Machines Accessed 4 | . . 1 3 . Terminals 3 | . . 1 2 . Fabricators . | . . . . . Repair Stations 1 | . . . 1 . Recycling Units . | . . . . . Scanalyzers . | . . . . . Garrison Access . | . . . . . Total Hacks 11 | . . 3 8 . Successful 3 | . . . 3 . Failed 8 | . . 3 5 . Catastrophic 2 | . . 2 . . Database Lockouts . | . . . . . Manual 3 | . . 3 . . Terminals 8 | . . 3 5 . Fabricators . | . . . . . Repair Stations 3 | . . . 3 . Recycling Units . | . . . . . Scanalyzers . | . . . . . Garrison Access . | . . . . . Terminal Hacks 1 | . . . 1 . Open Door 1 | . . . 1 . Fabricator Hacks . | . . . . . Repair Station Hacks 2 | . . . 2 . Scan Component 1 | . . . 1 . Repair 1 | . . . 1 . Recycling Unit Hacks . | . . . . . Scanalyzer . | . . . . . Garrison Access Hacks . | . . . . . Unauthorized Hacks . | . . . . . Terminals . | . . . . . Fabricators . | . . . . . Repair Stations . | . . . . . Recycling Units . | . . . . . Scanalyzers . | . . . . . Garrison Access . | . . . . . Data Cores Recovered . | . . . . . Used . | . . . . . Hacking Detections 3 | . . 1 2 . Full Trace Events 2 | . . 1 1 . Feedback Events . | . . . . . Feedback Blocked . | . . . . . Robot Schematics Acquired . | . . . . . Robots Built . | . . . . . Authchips . | . . . . . Time . | . . . . . Total Robot Build Rating . | . . . . . Part Schematics Acquired . | . . . . . Parts Built . | . . . . . Authchips . | . . . . . Time . | . . . . . Total Part Build Rating . | . . . . . Parts Repaired 1 | . . . 1 . Time 32 | . . . 32 . Parts Recycled . | . . . . . Recycled Matter . | . . . . . Retrieved Matter . | . . . . . Retrieved Components . | . . . . . Parts Scanalyzed . | . . . . . Part Schematics Acquired . | . . . . . Parts Damaged . | . . . . . Bothacking | -11 -10 -9 -9 -8 ------------ Run | Yrd Mat Mat Sto Mat Used RIF Installer . | . . . . . Robots Hacked . | . . . . . Non-combat . | . . . . . Combat . | . . . . . Robot Hacks Applied . | . . . . . Relay Couplers Released . | . . . . . Fabnet Peak Effective % . | . . . . . Robots Rewired . | . . . . . Allies Hacked . | . . . . . Hacks Repelled . | . . . . . Allies | -11 -10 -9 -9 -8 -------- Run | Yrd Mat Mat Sto Mat Total Allies . | . . . . . Largest Group . | . . . . . Highest-Rated Group . | . . . . . Highest-Rated Ally . | . . . . . Total Orders . | . . . . . Ally Attacks . | . . . . . Total Damage . | . . . . . Kills . | . . . . . Allies Corrupted . | . . . . . Allies Melted . | . . . . . Intel | -11 -10 -9 -9 -8 ------- Run | Yrd Mat Mat Sto Mat Robot Analysis Total . | . . . . . Derelict Logs Recovered . | . . . . . Drone Launches . | . . . . . Drone Recoveries . | . . . . . Exploration | -11 -10 -9 -9 -8 ------------- Run | Yrd Mat Mat Sto Mat Turns Passed 2802 | 116 287 1031 912 456 Spaces Moved 830 | 45 149 237 199 200 Core 7 | 7 . . . . Treads 328 | 38 69 . 21 200 Legs 85 | . . . 85 . Wheels . | . . . . . Hover 410 | . 80 237 93 . Flight . | . . . . . Fastest Speed 48 | 50 56 48 108 160 Average Speed 134 | 142 122 57 206 161 Slowest Speed 370 | 160 160 108 370 240 Overloaded Moves . | . . . . . Propulsion Burnouts . | . . . . . Robots Hopped . | . . . . . Cave-ins Triggered . | . . . . . Exploration Rate (%) 21 | 4 18 11 44 29 Regions Visited 4 Branch Regions 1 Pre-discovered Areas . | . . . . . Known Exits Taken . | . . . . . Unknown Exits Taken 4 | 1 1 1 1 . Scrap Searched . | . . . . . Spaces Dug . | . . . . . Terrain Destroyed 134 | . . . . 134 Melee . | . . . . . Projectile . | . . . . . AOE 134 | . . . . 134 Terrain Rammed . | . . . . . Walls Destroyed . | . . . . . Machines Disabled . | . . . . . Actions | -11 -10 -9 -9 -8 --------- Run | Yrd Mat Mat Sto Mat Total 2331 | 74 249 1126 588 294 Wait 1280 | . 73 866 312 29 Move 826 | 44 148 236 198 200 Hop . | . . . . . Pick Up 50 | 9 14 9 4 14 Fast Attach 7 | . . 3 4 . Attach 25 | 7 . 2 5 11 Detach . | . . . . . Swap 7 | . 5 1 . 1 Drop 24 | . 6 5 4 9 Fire 47 | 14 3 3 . 27 Melee 62 | . . 1 61 . Ram . | . . . . . Kick . | . . . . . Crush 3 | . . . . 3 Escape Stasis . | . . . . . Rewire . | . . . . . Trap . | . . . . . Miscellaneous . | . . . . . Route ------- -11/Scrapyard -10/Materials -9/Materials -9/Storage -8/Materials History --------- Turn | Location | Event 52 | -11/Scrapyard | Discovered new exit (range 15) 117 | -11/Scrapyard | Entered Materials 302 | -10/Materials | Build established: Mutant 332 | -10/Materials | Discovered new exit (range 14) 404 | -10/Materials | Entered another Materials area 404 | -9/Materials | Evolved 2 slots: Propulsion x2 805 | -9/Materials | Discovered new exit (range 15) 1435 | -9/Materials | Entered Storage 2043 | -9/Storage | Core integrity fell below 50% 2225 | -9/Storage | Repaired Imp. Aluminum Leg 2258 | -9/Storage | Discovered new exit (range 16) 2347 | -9/Storage | Entered Materials 2347 | -8/Materials | Evolved 2 slots: Utility x2 2686 | -8/Materials | Lost 3 parts (1u2w) 2752 | -8/Materials | System corruption reached 10% 2769 | -8/Materials | Core integrity fell below 50% 2794 | -8/Materials | Core integrity fell below 20% 2797 | -8/Materials | Lost 10 parts (1p3n3u3w) 2803 | -8/Materials | Destroyed by G-47 Trooper with Particle Gun Last Messages --------------- 02770_ G-47 Trooper IFF system glitched. 02770_ U-05 Engineer lays Concrete. 02772_ G-47 Trooper IFF system glitched. 02772_ G-47 Trooper suffers critical hit (Burn). 02773_ U-05 Engineer lays Concrete. 02778_ G-47 Trooper suffers critical hit (Burn). 02778_ G-47 Trooper destroyed. 02779_ U-05 Engineer lays Concrete. 02779_ R-06 Scavenger collects Corrupted Aluminum Leg. 02780_ U-05 Engineer lays Concrete. 02783_ R-06 Scavenger collects Corrupted Lgt. Nuclear Core. 02784_ U-05 Engineer destroyed. 02785_ W-25 Informer sends out distress signal. 02786_ Critical hit (Burn: +37). 02787_ R-06 Scavenger collects Particle Gun. 02790_ R-06 Scavenger collects Aluminum Leg. 02792_ M KUFZD72K4SEJ3BQ0ZO:,GJNWBTHAH#P47R9XY0 02796_ Destroyed Lgt. Nuclear Core. 02797_ Hvy. Laser destroyed. 02799_ G-47 Trooper misfires. Map ----- +----------------------------------------------------+ | # #?????????????? #?????????????????????? | | #######/###?????????????? #?????????????????????? | | ??????# #??????????????? #?????????????????????? | | ??????# #?????????+????? #?????????????????????? | | ??????# #????????# #???? #?????????????????????? | | ??????# #????????# #???# #?????????????????????? | | ??????# #????????# #???# #?????????????????????? | | ??????# #????????# #???# #?????????????????????? | | ??????# #????????# #???# #?????????????????????? | | ????### ###??????# #???# #?????????????????????? | | ????# ######## ##### #?????????????????????? | | ????# #?????????????????????? | | ????# ^ #?????????????????????? | | ????# ^ ##????????????????????? | | ????# ######## " #????????????????????? | | ????#######??????#[ " #????????????????????? | | ?????????????????# !% #????????????????????? | | ?????????????????# ! =% #????????????????????? | | ?????????????????# %g %#????????????????????? | | ?????????????????# g #????????????????????? | | ?????????????????# " ! % #????????????????????? | | ?????????????????# =%** #????????????????????? | | ?????????????????# = #????????????????????? | | ?????????????????# "" ! #????????????????????? | | ?????????????????# "" % #????????????????????? | | ?????????????? a "" @ #????????????????????? | | ?????????????? Y #????????????????????? | | ???????????? #????????????????????? | | ??????????? ###"T"# #????????????????????? | | ??????????? ??????#"""###;###????????????????????? | | ??????????????????###??? ??????????????????????? | | ???????????????????????? "??????????????????????? | | ???????????????????????? "??????????????????????? | | ???????????????????????? "??????????????????????? | | ???????????????????????? "??????????????????????? | | ??????????????????????? ??????????????????????? | | ???????????????????????####??????????????????????? | | ?????????????????????????????????????????????????? | | ?????????????????????????????????????????????????? | | ?????????????????????????????????????????????????? | | ?????????????????????????????????????????????????? | | ?????????????????????????????????????????????????? | | ?????????????????????????????????????????????????? | | | | | | | | | | | | | | | +----------------------------------------------------+ Best States ------------- Heat Dissipation 31 Energy Generation 14 Energy Capacity 280 Matter Stores 300 Matter Capacity 300 Sight Range 16 Terrain Scan Density 10 Armor Coverage 225 Evasion (%) 55 Targeting Accuracy 10 Recoil Reduction 4 Item Schematics ----------------- None Robot Schematics ------------------ None Fabricated ------------ Nothing Alien Tech Used ----------------- None Achievements -------------- None Challenges ------------ None Game ------ Seed DrainedTeslaPenetrator Manual? 0 Play Time 00:33:16 Cumulative 39.1 hours Start 2024.06.04 @ 19:43:06 End 2024.06.04 @ 20:09:12 Sessions 1 Manual Loads 0 Difficulty Rogue Special Mode None Game No. 67 Rogue 67 Adventurer 0 Explorer 0 Win Type - Total 0 Types 0/0/0/0/0/0/0/0/0 Lore% 22 Gallery% 30 Achievement% 27 Wizard Run 0 Options --------- Layout 0 ASCII 0 Keyboard 0 Movement Mouse Keybinds 0 Fullscreen 2 Font 18/SmallcapsGlow Map View 38x25 Zoom Use 95% Tactical HUD 1 Map Filters NONE Filters NONE Steam 1 RUN: 09685c59-c0bc-4212-8a12-c2dde82643d0